fUSD/lending_fUSD_20260121
["ID","MTS","AMOUNT","RATE_DAILY","PERIOD"]
[402927236,1768988896147,-433.0,0.00041467,30]
[402927237,1768988896208,-4480.47032022,0.000415,120]
[402927238,1768988896271,-1359.1,0.00041521,120]
[402927239,1768988896330,-12805.42321084,0.000416,120]
[402927240,1768988896391,-150.0,0.00041636,30]
[402927241,1768988896449,-500.0,0.00041643,120]
[402927242,1768988896516,-500.0,0.00041643,120]
[402927243,1768988896573,-500.0,0.00041643,120]
[402927244,1768988896630,-500.0,0.00041643,120]
[402927245,1768988896687,-533.98,0.00041643,120]
[402927246,1768988896741,-329.5387628,0.00041643,120]
[402927247,1768988896800,-500.0,0.00041643,120]
[402927248,1768988896856,-574.02,0.00041643,120]
[402927249,1768988896915,-539.31,0.00041643,120]
[402927250,1768988897186,-579.91,0.00041643,120]
[402927251,1768988897250,-500.0,0.00041643,120]
[402927252,1768988897315,-219.12594187,0.00041643,120]
[402927253,1768988897377,-500.0,0.00041643,120]
[402927254,1768988897438,-500.0,0.00041643,120]
[402927255,1768988897502,-167.23765337,0.00041643,120]
[402927256,1768988897561,-500.0,0.00041643,120]
[402927257,1768988897621,-500.0,0.00041643,120]
[402927258,1768988897680,-500.0,0.00041643,120]
[402927259,1768988897739,-500.0,0.00041643,120]
[402927260,1768988897796,-512.9,0.00041643,120]
[402927261,1768988897857,-500.0,0.00041643,120]
[402927262,1768988897915,-500.0,0.00041643,120]
[402927263,1768988897973,-611.76,0.00041643,120]
[402927264,1768988898031,-500.0,0.00041643,120]
[402927265,1768988898086,-500.0,0.00041643,120]
[402927266,1768988898142,-304.52222759,0.00041643,120]
[402927267,1768988898200,-500.0,0.00041643,120]
[402927268,1768988898259,-500.0,0.00041643,120]
[402927269,1768988898314,-500.76,0.00041643,120]
[402927270,1768988898371,-500.0,0.00041643,120]
[402927271,1768988898427,-500.0,0.00041643,120]
[402927272,1768988898484,-500.0,0.00041643,60]
[402927273,1768988898549,-1236.19,0.00041643,120]
[402927274,1768988898615,-500.0,0.00041643,120]
[402927275,1768988898674,-500.0,0.00041643,120]
[402927276,1768988898732,-500.0,0.00041643,120]
[402927277,1768988898791,-651.71,0.00041643,120]
[402927278,1768988898849,-500.0,0.00041643,120]
[402927279,1768988898909,-500.0,0.00041643,120]
[402927280,1768988898972,-500.0,0.00041643,120]
[402927281,1768988899033,-500.0,0.00041643,120]
[402927282,1768988899094,-500.0,0.00041643,120]
[402927283,1768988899155,-513.92036872,0.00041643,120]
[402927284,1768988899217,-500.0,0.00041643,120]
[402927285,1768988899278,-550.67,0.00041643,120]
[402927286,1768988899338,-500.0,0.00041643,120]
[402927287,1768988899398,-622.11372476,0.00041643,120]
[402927288,1768988899460,-500.0,0.00041643,120]
[402927289,1768988899523,-500.0,0.00041643,120]
[402927290,1768988899583,-746.34,0.00041643,120]
[402927291,1768988899643,-500.0,0.00041643,120]
[402927292,1768988899703,-500.0,0.00041643,120]
[402927293,1768988899764,-275.67645162,0.00041643,120]
[402927294,1768988899824,-500.0,0.00041643,120]
[402927295,1768988899886,-500.0,0.00041643,120]
[402927296,1768988899951,-500.0,0.00041643,120]
[402927297,1768988900016,-500.0,0.00041643,120]
[402927298,1768988900080,-500.0,0.00041643,120]
[402927299,1768988900144,-500.0,0.00041643,120]
[402927300,1768988900206,-500.0,0.00041643,120]
[402927301,1768988900269,-500.0,0.00041643,120]
[402927302,1768988900331,-504.58513961,0.00041643,120]
[402927303,1768988900391,-500.0,0.00041643,120]
[402927304,1768988900450,-537.56173326,0.00041643,120]
[402927305,1768988900513,-500.0,0.00041643,120]
[402927306,1768988900574,-500.0,0.00041643,90]
[402927307,1768988900634,-500.0,0.00041643,120]
[402927308,1768988900692,-500.0,0.00041643,120]
[402927309,1768988900752,-500.0,0.00041643,120]
[402927310,1768988900812,-600.0,0.00041644,120]
[402927311,1768988900871,-150.0,0.00041709,30]
[402927312,1768988900934,-500.0,0.00041856,60]
[402927313,1768988900996,-800.0,0.00041856,60]
[402927314,1768988901059,-150.0,0.00041869,30]
[402927315,1768988901122,-11298.1,0.00041877,117]
[402927316,1768988901184,-433.0,0.00041895,30]
[402927317,1768988901246,-1901.79344375,0.000419,120]
[402927318,1768988901306,-500.0,0.00041917,120]
[402927319,1768988901366,-500.0,0.00041917,120]
[402927320,1768988901424,-500.0,0.00041917,120]
[402927321,1768988901484,-500.0,0.00041917,120]
[402927322,1768988901542,-533.98,0.00041917,120]
[402927323,1768988901603,-500.0,0.00041917,120]
[402927324,1768988901665,-574.02,0.00041917,120]
[402927325,1768988901726,-539.31,0.00041917,120]
[402927326,1768988901786,-579.91,0.00041917,120]
[402927327,1768988901848,-500.0,0.00041917,120]
[402927328,1768988901909,-500.0,0.00041917,120]
[402927329,1768988901971,-243.89298909,0.00041917,120]
[402927330,1768988902033,-500.0,0.00041917,120]
[402927331,1768988902093,-500.0,0.00041917,120]
[402927332,1768988902154,-500.0,0.00041917,120]
[402927333,1768988902214,-500.0,0.00041917,120]
[402927334,1768988902275,-512.9,0.00041917,120]
[402927335,1768988902335,-500.0,0.00041917,120]
[402927336,1768988902395,-500.0,0.00041917,120]
[402927337,1768988902456,-611.76,0.00041917,120]
[402927338,1768988902520,-534.88194041,0.00041917,120]
[402927339,1768988902579,-500.0,0.00041917,120]
[402927340,1768988902637,-500.0,0.00041917,120]
[402927341,1768988902695,-500.0,0.00041917,120]
[402927342,1768988902753,-500.76,0.00041917,120]
[402927343,1768988902813,-500.0,0.00041917,120]
[402927344,1768988902872,-500.0,0.00041917,120]
[402927345,1768988903100,-247.59781671,0.00041917,60]
[402927346,1768988903165,-1236.19,0.00041917,120]
[402927347,1768988903227,-500.0,0.00041917,120]
[402927348,1768988903290,-500.0,0.00041917,120]
[402927349,1768988903354,-500.0,0.00041917,120]
[402927350,1768988903415,-500.0,0.00041917,120]
[402927351,1768988903477,-651.71,0.00041917,120]
[402927352,1768988903538,-500.0,0.00041917,120]
[402927353,1768988903600,-500.0,0.00041917,120]
[402927354,1768988903663,-500.0,0.00041917,120]
[402927355,1768988903726,-500.0,0.00041917,120]
[402927356,1768988903789,-500.0,0.00041917,120]
[402927357,1768988903849,-550.67,0.00041917,120]
[402927358,1768988903912,-500.0,0.00041917,120]
[402927359,1768988903976,-500.0,0.00041917,120]
[402927360,1768988904040,-746.34,0.00041917,120]
[402927361,1768988904104,-500.0,0.00041917,120]
[402927362,1768988904169,-500.0,0.00041917,120]
[402927363,1768988904239,-197.54518745,0.00041917,120]
[402927364,1768988904309,-500.0,0.00041917,120]
[402927365,1768988904374,-500.0,0.00041917,120]
[402927366,1768988904436,-500.0,0.00041917,120]
[402927367,1768988904496,-578.19762365,0.00041917,120]
[402927368,1768988904559,-624.32281971,0.00041917,120]
[402927369,1768988904620,-500.0,0.00041917,120]
[402927370,1768988904681,-532.18052395,0.00041917,120]
[402927371,1768988904744,-236.77643352,0.00041917,120]
[402927372,1768988904806,-500.0,0.00041917,120]
[402927373,1768988904868,-226.98573089,0.00041917,120]
[402927374,1768988904936,-554.59967266,0.00041917,90]
[402927375,1768988904999,-500.0,0.00041917,120]
[402927376,1768988905064,-207.60767362,0.00041917,120]
[402927377,1768988905128,-500.0,0.00041917,120]
[402927378,1768988905192,-600.0,0.00041918,120]
[402927379,1768988905255,-600.0,0.00041918,120]
[402927380,1768988905323,-150.0,0.00041965,30]
[402927381,1768988905384,-1000.0,0.00042,120]
[402927382,1768988905444,-438.0,0.00042,120]
[402927383,1768988905505,-150.0,0.0004205,30]
[402927384,1768988905569,-150.0,0.0004205,30]
[402927385,1768988905628,-200.0,0.00042051,120]
[402927386,1768988905686,-3366.04,0.000421,30]
[402927387,1768988905743,-500.0,0.00042191,120]
[402927388,1768988905801,-500.0,0.00042191,120]
[402927389,1768988905861,-358.03196659,0.00042191,120]
[402927390,1768988905922,-533.98,0.00042191,120]
[402927391,1768988905987,-500.0,0.00042191,120]
[402927392,1768988906050,-574.02,0.00042191,120]
[402927393,1768988906114,-539.31,0.00042191,120]
[402927394,1768988906176,-579.91,0.00042191,120]
[402927395,1768988906241,-500.0,0.00042191,120]
[402927396,1768988906304,-615.48255623,0.00042191,120]
[402927397,1768988906363,-500.0,0.00042191,120]
[402927398,1768988906423,-500.0,0.00042191,120]
[402927399,1768988906484,-500.0,0.00042191,120]
[402927400,1768988906545,-497.82808419,0.00042191,120]
[402927401,1768988906606,-512.9,0.00042191,120]
[402927402,1768988906666,-500.0,0.00042191,120]
[402927403,1768988906724,-500.0,0.00042191,120]
[402927404,1768988906783,-611.76,0.00042191,120]
[402927405,1768988906845,-500.0,0.00042191,120]
[402927406,1768988906906,-500.0,0.00042191,120]
[402927407,1768988906970,-352.52971915,0.00042191,120]
[402927408,1768988907033,-500.76,0.00042191,120]
[402927409,1768988907091,-500.0,0.00042191,120]
[402927410,1768988907151,-500.0,0.00042191,120]
[402927411,1768988907211,-1236.19,0.00042191,120]
[402927412,1768988907273,-500.0,0.00042191,120]
[402927413,1768988907334,-500.0,0.00042191,120]
[402927414,1768988907395,-500.0,0.00042191,120]
[402927415,1768988907457,-500.0,0.00042191,120]
[402927416,1768988907518,-651.71,0.00042191,120]
[402927417,1768988907576,-557.2105664,0.00042191,120]
[402927418,1768988907634,-500.0,0.00042191,120]
[402927419,1768988907694,-500.0,0.00042191,120]
[402927420,1768988907754,-500.0,0.00042191,120]
[402927421,1768988907814,-500.0,0.00042191,120]
[402927422,1768988907879,-550.67,0.00042191,120]
[402927423,1768988907950,-500.0,0.00042191,120]
[402927424,1768988908013,-500.0,0.00042191,120]
[402927425,1768988908077,-746.34,0.00042191,120]
[402927426,1768988908138,-500.0,0.00042191,120]
[402927427,1768988908202,-500.0,0.00042191,120]
[402927428,1768988908267,-500.0,0.00042191,120]
[402927429,1768988908329,-500.0,0.00042191,120]
[402927430,1768988908397,-500.0,0.00042191,120]
[402927431,1768988908459,-500.0,0.00042191,120]
[402927432,1768988908528,-562.77972885,0.00042191,120]
[402927433,1768988908594,-500.0,0.00042191,120]
[402927434,1768988908664,-600.0,0.00042192,120]
[402927435,1768988908726,-600.0,0.00042192,120]
[402927436,1768988908788,-150.0,0.00042221,30]
[402927437,1768988908853,-150.0,0.00042257,30]
[402927438,1768988908916,-1116.26,0.00042274,30]
[402927439,1768988909165,-359.44,0.00042274,30]
[402927440,1768988909229,-433.0,0.00042322,30]
[402927441,1768988909291,-500.0,0.00042404,60]
[402927442,1768988909353,-800.0,0.00042404,60]
[402927443,1768988909415,-150.0,0.00042412,30]
[402927444,1768988909478,-150.0,0.00042412,30]
[402927445,1768988909540,-150.0,0.00042412,30]
[402927446,1768988909601,-500.0,0.00042465,120]
[402927447,1768988909661,-500.0,0.00042465,120]
[402927448,1768988909720,-533.98,0.00042465,120]
[402927449,1768988909780,-530.93139997,0.00042465,120]
[402927450,1768988909838,-574.02,0.00042465,120]
[402927451,1768988909896,-539.31,0.00042465,120]
[402927452,1768988909958,-579.91,0.00042465,120]
[402927453,1768988910021,-385.18835954,0.00042465,120]
[402927454,1768988910084,-500.0,0.00042465,120]
[402927455,1768988910144,-500.0,0.00042465,120]
[402927456,1768988910207,-500.0,0.00042465,120]
[402927457,1768988910268,-512.9,0.00042465,120]
[402927458,1768988910331,-500.0,0.00042465,120]
[402927459,1768988910393,-500.0,0.00042465,120]
[402927460,1768988910454,-611.76,0.00042465,120]
[402927461,1768988910518,-500.0,0.00042465,120]
[402927462,1768988910578,-500.0,0.00042465,120]
[402927463,1768988910639,-500.76,0.00042465,120]
[402927464,1768988910700,-500.0,0.00042465,120]
[402927465,1768988910761,-500.0,0.00042465,120]
[402927466,1768988910821,-1236.19,0.00042465,120]
[402927467,1768988910881,-500.0,0.00042465,120]
[402927468,1768988910944,-500.0,0.00042465,120]
[402927469,1768988911007,-500.0,0.00042465,120]
[402927470,1768988911068,-500.0,0.00042465,120]
[402927471,1768988911131,-651.71,0.00042465,120]
[402927472,1768988911194,-500.0,0.00042465,120]
[402927473,1768988911257,-500.0,0.00042465,120]
[402927474,1768988911317,-500.0,0.00042465,120]
[402927475,1768988911378,-534.50929052,0.00042465,120]
[402927476,1768988911440,-550.67,0.00042465,120]
[402927477,1768988911500,-500.0,0.00042465,120]
[402927478,1768988911562,-500.0,0.00042465,120]
[402927479,1768988911624,-746.34,0.00042465,120]
[402927480,1768988911686,-500.0,0.00042465,120]
[402927481,1768988911745,-500.0,0.00042465,120]
[402927482,1768988911806,-500.0,0.00042465,120]
[402927483,1768988911866,-500.0,0.00042465,120]
[402927484,1768988911929,-500.0,0.00042465,120]
[402927485,1768988911991,-500.0,0.00042465,120]
[402927486,1768988912054,-500.0,0.00042465,120]
[402927487,1768988912118,-600.0,0.00042466,120]
[402927488,1768988912181,-600.0,0.00042466,120]
[402927489,1768988912243,-150.0,0.00042476,30]
[402927490,1768988912306,-300.211738,0.00042604,112]
[402927491,1768988912370,-1079.40495311,0.00042699,120]
[402927492,1768988912431,-150.0,0.00042732,30]
[402927493,1768988912492,-500.0,0.00042739,120]
[402927494,1768988912553,-483.53903744,0.00042739,120]
[402927495,1768988912619,-533.98,0.00042739,120]
[402927496,1768988912679,-574.02,0.00042739,120]
[402927497,1768988912737,-539.31,0.00042739,120]
[402927498,1768988912797,-579.91,0.00042739,120]
[402927499,1768988912859,-500.0,0.00042739,120]
[402927500,1768988912924,-500.0,0.00042739,120]
[402927501,1768988912986,-500.0,0.00042739,120]
[402927502,1768988913051,-512.9,0.00042739,120]
[402927503,1768988913115,-500.0,0.00042739,120]
[402927504,1768988913179,-500.0,0.00042739,120]
[402927505,1768988913243,-611.76,0.00042739,120]
[402927506,1768988913308,-500.0,0.00042739,120]
[402927507,1768988913378,-524.57936998,0.00042739,120]
[402927508,1768988913449,-500.76,0.00042739,120]
[402927509,1768988913520,-500.0,0.00042739,120]
[402927510,1768988913588,-500.0,0.00042739,120]
[402927511,1768988913661,-1236.19,0.00042739,120]
[402927512,1768988913737,-500.0,0.00042739,120]
[402927513,1768988913803,-500.0,0.00042739,120]
[402927514,1768988913864,-500.0,0.00042739,120]
[402927515,1768988913927,-500.0,0.00042739,120]
[402927516,1768988913993,-651.71,0.00042739,120]
[402927517,1768988914056,-500.0,0.00042739,120]
[402927518,1768988914119,-500.0,0.00042739,120]
[402927519,1768988914190,-500.0,0.00042739,120]
[402927520,1768988914253,-550.67,0.00042739,120]
[402927521,1768988914315,-500.0,0.00042739,120]
[402927522,1768988914380,-500.0,0.00042739,120]
[402927523,1768988914444,-746.34,0.00042739,120]
[402927524,1768988914507,-500.0,0.00042739,120]
[402927525,1768988914571,-500.0,0.00042739,120]
[402927526,1768988914635,-500.0,0.00042739,120]
[402927527,1768988914698,-500.0,0.00042739,120]
[402927528,1768988914761,-500.0,0.00042739,120]
[402927529,1768988914824,-500.0,0.00042739,120]
[402927530,1768988914886,-500.0,0.00042739,120]
[402927531,1768988914951,-600.0,0.0004274,120]
[402927532,1768988915016,-600.0,0.0004274,120]
[402927533,1768988915081,-433.0,0.0004275,30]
[402927534,1768988915363,-150.0,0.00042775,30]
[402927535,1768988915429,-218.23707467,0.00042778,108]
[402927536,1768988915512,-500.0,0.000428,30]
[402927537,1768988915591,-500.0,0.000428,30]
[402927538,1768988915659,-500.0,0.000428,30]
[402927539,1768988915722,-500.0,0.000428,30]
[402927540,1768988915787,-500.0,0.000428,30]
[402927541,1768988915848,-500.0,0.000428,30]
[402927542,1768988915912,-500.0,0.000428,30]
[402927543,1768988915975,-500.0,0.000428,30]
[402927544,1768988916038,-500.0,0.000428,30]
[402927545,1768988916100,-500.0,0.000428,30]
[402927546,1768988916163,-500.0,0.000428,30]
[402927547,1768988916225,-500.0,0.000428,30]
[402927548,1768988916288,-500.0,0.000428,30]
[402927549,1768988916352,-500.0,0.000428,30]
[402927550,1768988916415,-500.0,0.000428,30]
[402927551,1768988916479,-500.0,0.000428,30]
[402927552,1768988916543,-500.0,0.000428,30]
[402927553,1768988916607,-500.0,0.000428,30]
[402927554,1768988916670,-500.0,0.000428,30]
[402927555,1768988916730,-500.0,0.000428,30]
[402927556,1768988916791,-500.0,0.000428,30]
[402927557,1768988916852,-500.0,0.000428,30]
[402927558,1768988916915,-500.0,0.000428,30]
[402927559,1768988916978,-500.0,0.000428,30]
[402927560,1768988917042,-500.0,0.000428,30]
[402927561,1768988917101,-500.0,0.000428,30]
[402927562,1768988917164,-401.7,0.000428,30]
[402927563,1768988917228,-150.0,0.00042879,30]
[402927564,1768988917289,-994.0,0.000429,30]
[402927565,1768988917349,-800.0,0.00042952,60]
[402927566,1768988917410,-150.0,0.00042956,30]
[402927567,1768988917470,-500.0,0.0004298,30]
[402927568,1768988917535,-500.0,0.0004298,30]
[402927569,1768988917598,-236.36372624,0.00042981,30]
[402927570,1768988917658,-236.36372624,0.00042981,30]
[402927571,1768988917719,-151.0,0.00042984,30]
[402927572,1768988917780,-1264.0,0.00042984,30]
[402927573,1768988917840,-151.0,0.00042984,30]
[402927574,1768988917900,-151.0,0.00042984,30]
[402927575,1768988917961,-151.0,0.00042984,30]
[402927576,1768988918033,-151.0,0.00042984,30]
[402927577,1768988918094,-151.0,0.00042984,30]
[402927578,1768988918158,-151.0,0.00042984,30]
[402927579,1768988918223,-151.0,0.00042984,30]
[402927580,1768988918287,-151.0,0.00042984,30]
[402927581,1768988918350,-151.0,0.00042984,30]
[402927582,1768988918411,-192.28780433,0.00042984,30]
[402927583,1768988918474,-166.29296141,0.00042984,30]
[402927584,1768988918537,-150.0,0.00042986,30]
[402927585,1768988918604,-150.0,0.00042988,30]
[402927586,1768988918664,-5000.0,0.00042999,30]
[402927587,1768988918725,-2656.02,0.00043,120]
[402927588,1768988918787,-165.0,0.00043,30]
[402927589,1768988918849,-164.0,0.00043,30]
[402927590,1768988918914,-498.66,0.00043,120]
[402927591,1768988918982,-500.0,0.00043013,120]
[402927592,1768988919047,-533.98,0.00043013,120]
[402927593,1768988919111,-574.02,0.00043013,120]
[402927594,1768988919176,-539.31,0.00043013,120]
[402927595,1768988919238,-579.91,0.00043013,120]
[402927596,1768988919302,-500.0,0.00043013,120]
[402927597,1768988919364,-500.0,0.00043013,120]
[402927598,1768988919425,-500.0,0.00043013,120]
[402927599,1768988919488,-512.9,0.00043013,120]
[402927600,1768988919553,-500.0,0.00043013,120]
[402927601,1768988919618,-500.0,0.00043013,120]
[402927602,1768988919682,-611.76,0.00043013,120]
[402927603,1768988919746,-500.0,0.00043013,120]
[402927604,1768988919815,-500.76,0.00043013,120]
[402927605,1768988919883,-500.0,0.00043013,120]
[402927606,1768988919952,-500.0,0.00043013,120]
[402927607,1768988920017,-1236.19,0.00043013,120]
[402927608,1768988920082,-500.0,0.00043013,120]
[402927609,1768988920147,-500.0,0.00043013,120]
[402927610,1768988920214,-500.0,0.00043013,120]
[402927611,1768988920278,-500.0,0.00043013,120]
[402927612,1768988920341,-651.71,0.00043013,120]
[402927613,1768988920403,-500.0,0.00043013,120]
[402927614,1768988920473,-500.0,0.00043013,120]
[402927615,1768988920540,-483.77503315,0.00043013,120]
[402927616,1768988920608,-550.67,0.00043013,120]
[402927617,1768988920671,-500.0,0.00043013,120]
[402927618,1768988920730,-479.22464772,0.00043013,120]
[402927619,1768988920787,-746.34,0.00043013,120]
[402927620,1768988920846,-500.0,0.00043013,120]
[402927621,1768988920913,-500.0,0.00043013,120]
[402927622,1768988920980,-500.0,0.00043013,120]
[402927623,1768988921040,-500.0,0.00043013,120]
[402927624,1768988921101,-500.0,0.00043013,120]
[402927625,1768988921165,-500.0,0.00043013,120]
[402927626,1768988921225,-500.0,0.00043013,120]
[402927627,1768988921286,-600.0,0.00043014,120]
[402927628,1768988921349,-600.0,0.00043014,120]
[402927629,1768988921555,-229.02719,0.0004306,120]
[402927630,1768988921620,-229.02719,0.0004306,120]
[402927631,1768988921683,-229.0272,0.0004306,120]
[402927632,1768988921745,-200.0,0.00043065,120]
[402927633,1768988921807,-1200.0,0.0004308,30]
[402927634,1768988921869,-50000.0,0.00043081,40]
[402927635,1768988921932,-500.733,0.00043081,120]
[402927636,1768988921995,-150.0,0.00043082,120]
[402927637,1768988922118,-200.0,0.00043082,120]
[402927638,1768988922180,-5000.0,0.00043103,30]
[402927639,1768988922241,-10000.0,0.00043104,30]
[402927640,1768988922300,-10000.0,0.00043104,30]
[402927641,1768988922359,-10000.0,0.00043104,30]
[402927642,1768988922418,-610.21148171,0.00043104,30]
[402927643,1768988922479,-610.21148171,0.00043104,30]
[402927644,1768988922537,-610.21148171,0.00043104,30]
[402927645,1768988922596,-610.21148171,0.00043104,30]
[402927646,1768988922654,-500.0,0.00043104,120]
[402927647,1768988922713,-433.0,0.00043177,30]
[402927648,1768988922772,-150.0,0.00043178,60]
[402927649,1768988922830,-150.0,0.00043178,60]
[402927650,1768988922890,-152.12222658,0.00043178,60]
[402927651,1768988922952,-153.14894232,0.00043178,60]
[402927652,1768988923011,-150.0,0.00043178,60]
[402927653,1768988923069,-150.0,0.00043178,120]
[402927654,1768988923128,-946.0,0.00043178,60]
[402927655,1768988923187,-150.0,0.00043178,60]
[402927656,1768988923248,-210.09047259,0.00043178,60]
[402927657,1768988923311,-941.0,0.00043178,60]
[402927658,1768988923371,-150.0,0.00043178,60]
[402927659,1768988923433,-150.0,0.00043178,60]
[402927660,1768988923496,-941.0,0.00043178,60]
[402927661,1768988923559,-941.0,0.00043178,60]
[402927662,1768988923620,-941.0,0.00043178,60]
[402927663,1768988923682,-500.0,0.00043178,60]
[402927664,1768988923743,-941.0,0.00043178,60]
[402927665,1768988923803,-500.0,0.00043178,60]
[402927666,1768988923862,-941.0,0.00043178,60]
[402927667,1768988923924,-941.0,0.00043178,60]
[402927668,1768988923985,-500.0,0.00043178,60]
[402927669,1768988924047,-941.0,0.00043178,60]
[402927670,1768988924106,-736.0,0.00043178,60]
[402927671,1768988924167,-941.0,0.00043178,60]
[402927672,1768988924229,-941.0,0.00043178,60]
[402927673,1768988924295,-941.0,0.00043178,60]
[402927674,1768988924356,-941.0,0.00043178,60]
[402927675,1768988924422,-593.0,0.00043178,60]
[402927676,1768988924483,-941.0,0.00043178,60]
[402927677,1768988924551,-941.0,0.00043178,60]
[402927678,1768988924612,-941.0,0.00043178,60]
[402927679,1768988924674,-941.0,0.00043178,60]
[402927680,1768988924733,-500.0,0.00043178,60]
[402927681,1768988924793,-941.0,0.00043178,60]
[402927682,1768988924851,-150.0,0.00043178,60]
[402927683,1768988924912,-941.0,0.00043178,60]
[402927684,1768988924980,-152.84284681,0.00043178,60]
[402927685,1768988925044,-500.0,0.00043178,60]
[402927686,1768988925108,-941.0,0.00043178,60]
[402927687,1768988925170,-500.0,0.00043178,60]
[402927688,1768988925232,-941.0,0.00043178,60]
[402927689,1768988925293,-500.0,0.00043178,60]
[402927690,1768988925355,-150.0,0.00043178,60]
[402927691,1768988925415,-421.0,0.00043178,60]
[402927692,1768988925479,-941.0,0.00043178,60]
[402927693,1768988925541,-150.0,0.00043178,60]
[402927694,1768988925614,-500.0,0.00043178,60]
[402927695,1768988925677,-250.57177377,0.00043178,60]
[402927696,1768988925740,-500.0,0.00043178,60]
[402927697,1768988925803,-941.0,0.00043178,60]
[402927698,1768988925864,-941.0,0.00043178,60]
[402927699,1768988925930,-956.43485252,0.00043178,60]
[402927700,1768988925993,-500.0,0.00043178,60]
[402927701,1768988926059,-216.07295226,0.00043178,60]
[402927702,1768988926120,-150.0,0.00043233,60]
[402927703,1768988926181,-150.0,0.00043233,60]
[402927704,1768988926243,-150.0,0.00043233,120]
[402927705,1768988926304,-946.0,0.00043233,60]
[402927706,1768988926364,-224.73746907,0.00043233,60]
[402927707,1768988926422,-150.0,0.00043233,60]
[402927708,1768988926481,-500.0,0.00043233,60]
[402927709,1768988926540,-500.0,0.00043233,60]
[402927710,1768988926597,-500.0,0.00043233,60]
[402927711,1768988926659,-736.0,0.00043233,60]
[402927712,1768988926718,-593.0,0.00043233,60]
[402927713,1768988926775,-500.0,0.00043233,60]
[402927714,1768988926832,-159.3784323,0.00043233,60]
[402927715,1768988926890,-500.0,0.00043233,60]
[402927716,1768988926950,-601.66267176,0.00043233,60]
[402927717,1768988927010,-500.0,0.00043233,60]
[402927718,1768988927075,-150.0,0.00043233,60]
[402927719,1768988927140,-421.0,0.00043233,60]
[402927720,1768988927392,-235.06380015,0.00043233,60]
[402927721,1768988927457,-500.0,0.00043233,60]
[402927722,1768988927526,-500.0,0.00043233,60]
[402927723,1768988927598,-500.0,0.00043233,60]
[402927724,1768988927664,-150.0,0.00043244,30]
[402927725,1768988927728,-1554.85,0.0004325,120]
[402927726,1768988927792,-1247.47704289,0.0004325,120]
[402927727,1768988927864,-200.0,0.00043285,120]
[402927728,1768988927931,-5000.0,0.00043286,30]
[402927729,1768988927996,-5000.0,0.00043286,30]
[402927730,1768988928060,-5000.0,0.00043286,30]
[402927731,1768988928125,-500.0,0.00043287,120]
[402927732,1768988928189,-533.98,0.00043287,120]
[402927733,1768988928251,-574.02,0.00043287,120]
[402927734,1768988928310,-539.31,0.00043287,120]
[402927735,1768988928371,-579.91,0.00043287,120]